fUSD/lending_fUSD_20250118
["ID","MTS","AMOUNT","RATE_DAILY","PERIOD"]
[349421640,1737173442255,-500.0,0.00020796,2]
[349421641,1737173442265,-693.0,0.00020796,2]
[349421644,1737173442278,-500.0,0.00020796,2]
[349421646,1737173442292,-513.68,0.00020796,2]
[349421649,1737173442305,-500.0,0.00020796,2]
[349421651,1737173442318,-500.0,0.00020796,2]
[349421653,1737173442329,-500.0,0.00020796,2]
[349421656,1737173442340,-500.0,0.00020796,2]
[349421658,1737173442353,-500.0,0.00020796,2]
[349421660,1737173442365,-500.0,0.00020796,2]
[349421663,1737173442376,-500.0,0.00020796,2]
[349421665,1737173442388,-500.0,0.00020796,2]
[349421667,1737173442401,-1500.0,0.000208,7]
[349421669,1737173442415,-150.24,0.00020822,2]
[349421672,1737173442428,-176.8655,0.00020832,2]
[349421674,1737173442439,-3445.10427764,0.00020837,2]
[349421676,1737173442450,-2982.17082161,0.00020843,2]
[349421678,1737173442460,-2982.17082161,0.00020851,2]
[349421680,1737173442472,-3445.10427764,0.00020855,2]
[349421683,1737173442485,-2982.17082161,0.0002086,2]
[349421685,1737173442497,-29358.76091421,0.00020864,2]
[349421688,1737173442515,-1590.9845067,0.00020864,2]
[349421690,1737173442529,-17116.24017301,0.00020864,2]
[349421694,1737173442556,-874.66351654,0.00020864,2]
[349421698,1737173442580,-385.87238127,0.00020864,2]
[349421700,1737173442595,-561.18935367,0.00020864,2]
[349421798,1737173443523,-500.0,0.00020143,2]
[349421800,1737173443535,-500.0,0.00020144,2]
[349421802,1737173443546,-7607.43451187,0.00020864,2]
[349421804,1737173443558,-57495.14535727,0.00020876,2]
[349421806,1737173443569,-3445.10427764,0.00020885,2]
[349421808,1737173443579,-3445.10427764,0.00020886,2]
[349421811,1737173443590,-6130.71798352,0.00020888,2]
[349421816,1737173443633,-290.181288,0.00020888,2]
[349421828,1737173443735,-338.14,0.00020044,2]
[349421830,1737173443748,-661.86,0.00020044,2]
[349421832,1737173443759,-500.0,0.00020143,2]
[349421835,1737173443771,-25771.7224096,0.00020888,2]
[349421837,1737173443783,-3000.0,0.00020889,2]
[349421839,1737173443794,-816.01759082,0.00020889,2]
[349421843,1737173443826,-2161.44418222,0.00020889,2]
[349422093,1737173446239,-500.0,0.0002,7]
[349422119,1737173446471,-500.0,0.0002,7]
[349422122,1737173446500,-500.0,0.00020143,2]
[349422125,1737173446518,-1263.84,0.00020143,2]
[349422127,1737173446530,-1312.02,0.00020143,2]
[349422129,1737173446539,-500.0,0.00020143,2]
[349422131,1737173446549,-171.069804,0.00020143,2]
[349422133,1737173446558,-90.86397614,0.00020144,2]
[349422135,1737173446569,-273.08663177,0.00020144,2]
[349422139,1737173446595,-136.04939209,0.00020144,2]
[349422141,1737173446604,-300.515264,0.00020144,2]
[349422304,1737173492732,2000.0,0.00019868,120]
[349422305,1737173593021,261.316895,0.0002305,120]
[349422306,1737173595154,2000.0,0.0002305,120]
[349422309,1737174097093,459.0,0.000202,31]
[349422311,1737174193615,2000.0,0.00023075,120]
[349422312,1737174335151,-252.51,0.00010137,2]
[349422313,1737174335176,-29465.80502975,0.00012,2]
[349422315,1737174429099,-1744.38368442,9.99e-05,2]
[349422316,1737174441119,-1262.69232364,9.99e-05,2]
[349422317,1737174441143,-397.39091264,0.00012,2]
[349422318,1737174442146,-528.65819038,0.00012,2]
[349422321,1737174526112,153.1133762,0.0002,120]
[349422333,1737174569172,-809.66937692,0.0001,2]
[349422346,1737174632288,-150.0,9.999e-05,2]
[349422347,1737174632298,-1710.30118788,0.0001,2]
[349422348,1737174632307,-27976.34701102,0.0001,2]
[349422350,1737174632315,-3379.02930428,0.0001,2]
[349422352,1737174632326,-219.96,0.00010137,2]
[349422354,1737174632338,-255.0,0.00010999,2]
[349422355,1737174632353,-7439.36249682,0.00012,2]
[349422356,1737174632366,-6822.04953256,0.00012,2]
[349422357,1737174632385,-13134.89112957,0.00012,2]
[349422358,1737174632394,-433.0,0.00012099,2]
[349422359,1737174632404,-895.74,0.00016515,2]
[349422360,1737174632414,-252.51,0.00016813,2]
[349422361,1737174632423,-219.96,0.00016813,2]
[349422362,1737174632433,-500.0,0.00017736,2]
[349422363,1737174632442,-250.0,0.00018107,2]
[349422364,1737174632452,-17695.0,0.0001815,2]
[349422365,1737174632462,-164.82,0.00018189,2]
[349422366,1737174632471,-250.0,0.00018189,2]
[349422367,1737174632481,-35928.85,0.00018242,2]
[349422368,1737174632490,-631.69,0.00018261,2]
[349422369,1737174632499,-168.03,0.00018261,2]
[349422370,1737174632509,-23900.0,0.00018301,2]
[349422371,1737174632518,-2751.0,0.00018354,2]
[349422372,1737174632529,-191.70383931,0.00018371,2]
[349422373,1737174632540,-4167.74616069,0.00018371,2]
[349422374,1737174632550,-4531.62,0.00018392,2]
[349422375,1737174632559,-209.62192728,0.000185,2]
[349422376,1737174632569,-209.62192724,0.000185,2]
[349422377,1737174632578,-209.62192724,0.000185,2]
[349422378,1737174632587,-209.62192724,0.000185,2]
[349422379,1737174632596,-209.62192724,0.000185,2]
[349422380,1737174632606,-209.62192724,0.000185,2]
[349422381,1737174632615,-209.62192724,0.000185,2]
[349422382,1737174632625,-209.62192724,0.000185,2]
[349422383,1737174632634,-209.62192724,0.000185,2]
[349422384,1737174632643,-209.62192724,0.000185,2]
[349422385,1737174632652,-209.62192724,0.000185,2]
[349422386,1737174632661,-209.62192724,0.000185,2]
[349422387,1737174632673,-4381.26,0.00018509,2]
[349422388,1737174632688,-375.12,0.0001852,2]
[349422389,1737174632701,-209.62192724,0.00018547,2]
[349422390,1737174632713,-1000.0,0.00018551,2]
[349422391,1737174632730,-715.72,0.00018552,2]
[349422392,1737174632743,-1600.0,0.00018582,2]
[349422393,1737174632756,-241.81,0.00018668,2]
[349422394,1737174632768,-253.71,0.00018698,2]
[349422396,1737174632783,-305.13873096,0.00018703,2]
[349422399,1737174632809,-669.21126904,0.00018703,2]
[349422401,1737174632822,-895.74,0.00018779,2]
[349422402,1737174632832,-277.86947652,0.00018791,2]
[349422403,1737174632845,-727.05052348,0.00018791,2]
[349422404,1737174632858,-334.02,0.00018827,3]
[349422405,1737174632870,-250.0,0.00018835,2]
[349422406,1737174632883,-500.0,0.00018901,2]
[349422407,1737174632896,-156.28457104,0.00018969,2]
[349422408,1737174632911,-9.16542896,0.00018969,2]
[349422409,1737174632923,-209.62192724,0.00019018,2]
[349422410,1737174632936,-247.64194419,0.00019339,2]
[349422412,1737174632951,-431.50372872,0.00019339,2]
[349422415,1737174632966,-1679.22432709,0.00019339,2]
[349422417,1737174632980,-150.99,0.00019339,2]
[349422419,1737174632992,-891.50267291,0.00019339,2]
[349422421,1737174633006,-599.69194116,0.00019339,2]
[349422423,1737174633023,-722.54233573,0.00019339,2]
[349422430,1737174633082,-3255.9530502,0.00019339,2]
[349422432,1737174633092,-999.99,0.00019339,2]
[349422433,1737174633104,-209.62192724,0.00019488,2]
[349422436,1737174633116,-200.0,0.00019555,2]
[349422438,1737174633129,-157.825,0.00019641,2]
[349422440,1737174633143,-1272.282,0.00019641,2]
[349422442,1737174633153,-3356.05381438,0.00019721,2]
[349422444,1737174633166,-45338.63618562,0.00019721,2]
[349422446,1737174633177,-192.35209704,0.0001976,2]
[349422448,1737174633190,-2139.6750386,0.000198,2]
[349422450,1737174633203,-1910.68496571,0.000198,2]
[349422453,1737174633216,-11.7243494,0.000199,7]
[349422456,1737174633244,-1031.3303,0.000199,7]
[349422459,1737174633264,-256.9453506,0.000199,7]
[349422461,1737174633275,-400.0,0.000199,7]
[349422463,1737174633288,-2139.67503855,0.00019922,2]
[349422465,1737174633299,-500.0,0.00019928,2]
[349422467,1737174633311,-1100.0,0.00019928,2]
[349422469,1737174633323,-500.0,0.00019928,2]
[349422472,1737174633335,-258.37961085,0.00019942,2]
[349422474,1737174633349,-4741.62038915,0.00019942,2]
[349422476,1737174633360,-176.8655,0.00019942,2]
[349422478,1737174633372,-209.62192724,0.00019959,2]
[349422480,1737174633384,-500.0,0.00019999,2]
[349422482,1737174633396,-500.0,0.00019999,2]
[349422483,1737174633408,-500.0,0.00019999,2]
[349422484,1737174633419,-500.0,0.0002,7]
[349422485,1737174633430,-500.0,0.0002,7]
[349422486,1737174633442,-500.0,0.0002,7]
[349422487,1737174633453,-500.0,0.0002,7]
[349422488,1737174633465,-500.0,0.0002,7]
[349422489,1737174633477,-500.0,0.0002,7]
[349422490,1737174633488,-500.0,0.0002,7]
[349422491,1737174633499,-500.0,0.0002,7]
[349422492,1737174633511,-605.32,0.0002,7]
[349422493,1737174633522,-9471.3550587,0.0002,2]
[349422494,1737174633537,-164.82,0.00020008,2]
[349422495,1737174633548,-620.83,0.0002004,2]
[349422496,1737174633560,-500.0,0.0002004,2]
[349422497,1737174633571,-714.06,0.0002004,2]
[349422498,1737174633583,-684.85,0.0002004,2]
[349422499,1737174633594,-500.0,0.0002004,2]
[349422500,1737174633606,-834.67,0.0002004,2]
[349422501,1737174633618,-1514.56,0.0002004,2]
[349422502,1737174633630,-500.0,0.0002004,2]
[349422503,1737174633641,-500.0,0.0002004,2]
[349422504,1737174633653,-500.0,0.0002004,2]
[349422505,1737174633664,-2485.8,0.0002004,2]
[349422506,1737174633676,-556.89,0.0002004,2]
[349422507,1737174633688,-500.0,0.0002004,2]
[349422508,1737174633699,-512.65,0.0002004,2]
[349422509,1737174633710,-573.46,0.0002004,2]
[349422510,1737174633722,-500.0,0.0002004,2]
[349422511,1737174633733,-500.0,0.0002004,2]
[349422512,1737174633745,-500.0,0.0002004,2]
[349422513,1737174633757,-500.0,0.0002004,2]
[349422514,1737174633768,-500.0,0.0002004,2]
[349422515,1737174633781,-2120.35,0.0002004,2]
[349422516,1737174633792,-803.96,0.0002004,2]
[349422517,1737174633804,-500.0,0.0002004,2]
[349422518,1737174633816,-721.83,0.0002004,2]
[349422519,1737174633827,-595.71,0.0002004,2]
[349422520,1737174633839,-500.0,0.0002004,2]
[349422521,1737174633850,-500.0,0.0002004,2]
[349422522,1737174633860,-2730.64,0.0002004,2]
[349422523,1737174633871,-500.0,0.0002004,2]
[349422524,1737174633881,-500.0,0.0002004,2]
[349422525,1737174633892,-759.73,0.0002004,2]
[349422526,1737174633903,-500.0,0.00020041,2]
[349422527,1737174633915,-500.0,0.00020041,2]
[349422528,1737174633927,-500.0,0.00020041,2]
[349422529,1737174633938,-500.0,0.00020041,2]
[349422530,1737174633949,-500.0,0.00020041,2]
[349422531,1737174633961,-500.0,0.00020041,2]
[349422532,1737174633972,-233.57819081,0.00020041,2]
[349422533,1737174633983,-189.16151682,0.00020041,2]
[349422534,1737174633995,-244.71941252,0.00020041,2]
[349422535,1737174634006,-500.0,0.00020041,2]
[349422536,1737174634018,-500.0,0.00020041,2]
[349422537,1737174634034,-500.0,0.00020041,2]
[349422538,1737174634045,-500.0,0.00020041,2]
[349422539,1737174634056,-500.0,0.00020041,2]
[349422540,1737174634069,-197.94800476,0.00020041,2]
[349422541,1737174634084,-302.05199524,0.00020041,2]
[349422542,1737174634100,-134.84800461,0.00020041,2]
[349422543,1737174634114,-365.15199539,0.00020041,2]
[349422544,1737174634125,-224.09800461,0.00020041,2]
[349422554,1737174638269,-500.0,0.00019941,2]
[349422555,1737174638280,-500.0,0.00019999,2]
[349422556,1737174638291,-454.24614478,0.00019999,2]
[349422557,1737174638303,-45.75385522,0.00019999,2]
[349422558,1737174638313,-275.90199539,0.00020041,2]
[349422559,1737174638323,-500.0,0.00020041,2]
[349422560,1737174638333,-500.0,0.00020041,2]
[349422561,1737174638343,-884.31,0.00020041,2]
[349422562,1737174638353,-500.0,0.00020041,2]
[349422563,1737174638362,-784.57657933,0.00020041,2]
[349422564,1737174638374,-495.79342067,0.00020041,2]
[349422565,1737174638383,-500.0,0.00020041,2]
[349422566,1737174638393,-500.0,0.00020041,2]
[349422567,1737174638402,-717.9,0.00020041,2]
[349422568,1737174638411,-500.0,0.00020041,2]
[349422569,1737174638421,-636.15143716,0.00020041,2]
[349422570,1737174638430,-500.0,0.00020041,2]
[349422571,1737174638439,-273.874594,0.00020041,2]
[349422572,1737174638448,-1257.35,0.00020041,2]
[349422573,1737174638457,-1151.33,0.00020041,2]
[349422574,1737174638467,-500.0,0.00020041,2]
[349422575,1737174638476,-1202.7,0.00020041,2]
[349422576,1737174638485,-500.0,0.00020041,2]
[349422577,1737174638494,-500.0,0.00020041,2]
[349422578,1737174638504,-500.0,0.00020041,2]
[349422579,1737174638514,-519.19,0.00020041,2]
[349422580,1737174638523,-628.48,0.00020041,2]
[349422581,1737174638533,-500.0,0.00020041,2]
[349422582,1737174638542,-500.0,0.00020041,2]
[349422583,1737174638551,-3032.53,0.00020041,2]
[349422584,1737174638560,-4149.44,0.00020041,2]
[349422585,1737174638570,-500.0,0.00020041,2]
[349422586,1737174638579,-773.38,0.00020041,2]
[349422587,1737174638588,-4280.24,0.00020041,2]
[349422588,1737174638598,-2619.8,0.00020041,2]
[349422589,1737174638608,-500.0,0.00020041,2]
[349422590,1737174638617,-2280.07,0.00020041,2]
[349422591,1737174638627,-925.12,0.00020041,2]
[349422592,1737174638637,-500.0,0.00020041,2]
[349422593,1737174638646,-500.0,0.00020041,2]
[349422594,1737174638656,-500.0,0.00020041,2]
[349422595,1737174638665,-908.58,0.00020041,2]
[349422596,1737174638674,-160.59998318,0.00020041,2]
[349422597,1737174638686,-341.30931669,0.00020041,2]
[349422598,1737174638695,-528.62726856,0.00020041,2]
[349422599,1737174638706,-62.11953728,0.00020041,2]
[349422600,1737174638718,-311.42658178,0.00020041,2]
[349422601,1737174638731,-126.45388094,0.00020041,2]
[349422603,1737174638741,-500.0,0.00020041,2]
[349422605,1737174638750,-500.0,0.00020041,2]
[349422606,1737174638759,-137.67616407,0.00020041,2]
[349422607,1737174638771,-362.32383593,0.00020041,2]
[349422608,1737174638779,-504.73,0.00020041,2]
[349422609,1737174638789,-500.0,0.00020041,2]
[349422610,1737174638799,-207.94907953,0.00020041,2]
[349422611,1737174638810,-292.05092047,0.00020041,2]
[349422612,1737174638820,-500.0,0.00020041,2]
[349422613,1737174638829,-500.0,0.00020041,2]
[349422614,1737174638838,-500.0,0.00020041,2]
[349422615,1737174638847,-500.0,0.00020041,2]
[349422616,1737174638856,-500.0,0.00020041,2]
[349422617,1737174638865,-500.0,0.00020041,2]
[349422618,1737174638875,-500.0,0.00020042,2]
[349422619,1737174638885,-500.0,0.00020042,2]
[349422620,1737174638894,-500.0,0.00020042,2]
[349422621,1737174638903,-500.0,0.00020042,2]
[349422622,1737174638912,-500.0,0.00020042,2]
[349422623,1737174638922,-508.84628122,0.00020042,2]
[349422624,1737174638931,-500.0,0.00020042,2]
[349422625,1737174638940,-500.0,0.00020042,2]
[349422626,1737174638950,-500.0,0.00020042,2]
[349422627,1737174638959,-500.0,0.00020042,2]
[349422628,1737174638968,-500.0,0.00020042,2]
[349422629,1737174638977,-465.42754788,0.00020042,2]
[349422630,1737174638987,-500.0,0.00020042,2]
[349422631,1737174638996,-500.0,0.00020042,2]
[349422632,1737174639005,-500.0,0.00020042,2]
[349422633,1737174639015,-240.20242643,0.00020042,2]
[349422634,1737174639029,-259.79757357,0.00020042,2]
[349422635,1737174639039,-500.0,0.00020042,2]
[349422636,1737174639048,-500.0,0.00020042,2]
[349422637,1737174639059,-470.28436849,0.00020042,2]
[349422638,1737174639069,-500.0,0.00020042,2]
[349422639,1737174639079,-500.0,0.00020042,2]
[349422640,1737174639089,-283.82419285,0.00020042,2]
[349422641,1737174639099,-500.0,0.00020042,2]
[349422642,1737174639108,-500.0,0.00020042,2]
[349422643,1737174639118,-500.0,0.00020042,2]
[349422644,1737174639127,-500.0,0.00020042,2]
[349422645,1737174639136,-500.0,0.00020042,2]
[349422646,1737174639146,-500.0,0.00020042,2]
[349422647,1737174639155,-500.0,0.00020042,2]
[349422648,1737174639164,-500.0,0.00020042,2]
[349422649,1737174639174,-500.0,0.00020042,2]
[349422650,1737174639183,-500.0,0.00020042,2]
[349422651,1737174639192,-500.0,0.00020042,2]
[349422652,1737174639201,-313.2143276,0.00020042,2]
[349422653,1737174639210,-500.0,0.00020042,2]
[349422654,1737174639219,-466.92240349,0.00020042,2]
[349422655,1737174639239,-54.5087277,0.00020042,2]
[349422656,1737174639249,-500.0,0.00020042,2]
[349422657,1737174639258,-500.0,0.00020042,2]
[349422658,1737174639267,-500.0,0.00020042,2]
[349422659,1737174639276,-500.0,0.00020042,2]
[349422660,1737174639286,-500.0,0.00020042,2]
[349422661,1737174639295,-500.0,0.00020042,2]
[349422662,1737174639305,-508.72097603,0.00020042,2]
[349422663,1737174639314,-503.0813738,0.00020042,2]
[349422664,1737174639323,-504.47378383,0.00020042,2]
[349422665,1737174639332,-152.94581947,0.00020042,2]
[349422666,1737174639341,-500.0,0.00020042,2]
[349422667,1737174639351,-500.0,0.00020042,2]
[349422668,1737174639360,-500.0,0.00020042,2]
[349422669,1737174639369,-500.0,0.00020042,2]
[349422670,1737174639378,-576.17103239,0.00020042,2]
[349422671,1737174639388,-500.0,0.00020042,2]
[349422672,1737174639397,-539.81952278,0.00020042,2]
[349422673,1737174639406,-500.0,0.00020042,2]
[349422674,1737174639415,-500.0,0.00020042,2]
[349422675,1737174639425,-500.0,0.00020042,2]
[349422676,1737174639434,-500.0,0.00020042,2]
[349422677,1737174639444,-500.0,0.00020042,2]
[349422678,1737174639454,-505.29128251,0.00020042,2]
[349422679,1737174639464,-500.0,0.00020042,2]
[349422680,1737174639475,-502.85668816,0.00020042,2]
[349422681,1737174639484,-521.81631365,0.00020042,2]
[349422682,1737174639493,-158.082972,0.00020042,2]
[349422683,1737174639502,-500.0,0.00020042,2]
[349422684,1737174639511,-589.11517105,0.00020042,2]
[349422685,1737174639520,-500.0,0.00020042,2]
[349422686,1737174639530,-1211.18,0.00020042,2]
[349422687,1737174639539,-500.0,0.00020042,2]
[349422688,1737174639548,-500.0,0.00020042,2]
[349422689,1737174639558,-500.0,0.00020042,2]
[349422690,1737174639568,-500.0,0.00020042,2]
[349422691,1737174639577,-500.0,0.00020042,2]
[349422692,1737174639586,-108.09595833,0.00020042,2]
[349422693,1737174639599,-391.90404167,0.00020042,2]
[349422694,1737174639608,-500.0,0.00020042,2]
[349422695,1737174639616,-95.41065823,0.00020042,2]
[349422696,1737174639628,-404.58934177,0.00020042,2]
[349422697,1737174639637,-512.26347341,0.00020042,2]
[349422698,1737174639647,-253.99689761,0.00020042,2]
[349422699,1737174639658,-246.00310239,0.00020042,2]
[349422700,1737174639667,-500.0,0.00020042,2]
[349422701,1737174639676,-248.45189778,0.00020042,2]
[349422702,1737174639691,-251.54810222,0.00020042,2]
[349422703,1737174639700,-500.0,0.00020042,2]
[349422704,1737174639710,-28.63314122,0.00020042,2]
[349422705,1737174639722,-471.36685878,0.00020042,2]
[349422706,1737174639731,-476.96360713,0.00020042,2]
[349422707,1737174639740,-500.0,0.00020042,2]
[349422708,1737174639749,-503.10539826,0.00020042,2]
[349422709,1737174639759,-72.11413583,0.00020042,2]
[349422710,1737174639774,-427.88586417,0.00020042,2]
[349422711,1737174639783,-500.0,0.00020042,2]
[349422712,1737174639792,-500.0,0.00020042,2]
[349422713,1737174639801,-500.0,0.00020042,2]
[349422714,1737174639810,-500.0,0.00020042,2]
[349422715,1737174639821,-500.0,0.00020042,2]
[349422716,1737174639833,-500.0,0.00020042,2]
[349422717,1737174639842,-500.0,0.00020042,2]
[349422718,1737174639852,-509.70414068,0.00020042,2]
[349422719,1737174639861,-500.0,0.00020042,2]
[349422720,1737174639871,-500.0,0.00020042,2]
[349422721,1737174639880,-451.52926538,0.00020042,2]
[349422722,1737174639889,-500.0,0.00020042,2]
[349422723,1737174639898,-500.0,0.00020042,2]
[349422724,1737174639908,-500.0,0.00020042,2]
[349422725,1737174639917,-208.31320053,0.00020042,2]
[349422726,1737174639926,-500.0,0.00020042,2]
[349422727,1737174639936,-500.0,0.00020042,2]
[349422728,1737174639945,-500.0,0.00020042,2]
[349422729,1737174639954,-500.0,0.00020042,2]
[349422730,1737174639964,-500.0,0.00020042,2]
[349422731,1737174639973,-500.0,0.00020042,2]
[349422732,1737174639982,-500.0,0.00020042,2]
[349422733,1737174639991,-500.0,0.00020042,2]
[349422734,1737174640001,-503.78137706,0.00020042,2]
[349422735,1737174640010,-500.0,0.00020042,2]
[349422736,1737174640025,-500.0,0.00020042,2]
[349422737,1737174640037,-500.0,0.00020042,2]
[349422738,1737174640046,-500.0,0.00020042,2]
[349422739,1737174640055,-500.0,0.00020042,2]
[349422740,1737174640067,-500.0,0.00020042,2]
[349422741,1737174640077,-500.0,0.00020042,2]
[349422742,1737174640087,-500.0,0.00020042,2]
[349422743,1737174640096,-500.0,0.00020042,2]
[349422744,1737174640107,-500.0,0.00020042,2]
[349422745,1737174640117,-500.0,0.00020042,2]
[349422746,1737174640127,-500.0,0.00020042,2]
[349422747,1737174640136,-500.0,0.00020042,2]
[349422748,1737174640146,-701.3,0.00020042,2]
[349422749,1737174640156,-500.0,0.00020042,2]
[349422750,1737174640166,-500.0,0.00020042,2]
[349422751,1737174640175,-500.0,0.00020042,2]
[349422752,1737174640184,-500.0,0.00020042,2]
[349422753,1737174640193,-500.0,0.00020042,2]
[349422754,1737174640203,-500.0,0.00020042,2]
[349422755,1737174640213,-500.0,0.00020042,2]
[349422756,1737174640223,-500.0,0.00020042,2]
[349422757,1737174640232,-500.0,0.00020042,2]
[349422759,1737174640242,-500.0,0.00020042,2]
[349422761,1737174640251,-500.0,0.00020042,2]
[349422762,1737174640260,-500.0,0.00020042,2]
[349422763,1737174640270,-500.0,0.00020042,2]
[349422765,1737174640280,-500.0,0.00020042,2]
[349422766,1737174640294,-500.0,0.00020042,2]
[349422767,1737174640305,-500.0,0.00020042,2]
[349422769,1737174640315,-500.0,0.00020042,2]
[349422770,1737174640325,-500.0,0.00020042,2]
[349422771,1737174640339,-500.0,0.00020042,2]
[349422772,1737174640349,-357.54783271,0.00020042,2]
[349422773,1737174640360,-500.0,0.00020042,2]
[349422774,1737174640370,-501.86969843,0.00020042,2]
[349422775,1737174640380,-500.0,0.00020042,2]
[349422776,1737174640390,-500.0,0.00020042,2]
[349422777,1737174640400,-500.0,0.00020042,2]
[349422778,1737174640409,-500.0,0.00020042,2]
[349422779,1737174640419,-500.0,0.00020042,2]
[349422780,1737174640428,-500.0,0.00020042,2]
[349422781,1737174640440,-500.0,0.00020042,2]
[349422782,1737174640449,-500.0,0.00020042,2]
[349422783,1737174640459,-500.0,0.00020042,2]
[349422784,1737174640470,-500.0,0.00020042,2]
[349422785,1737174640481,-500.0,0.00020042,2]
[349422786,1737174640493,-500.0,0.00020042,2]
[349422787,1737174640502,-500.0,0.00020042,2]
[349422788,1737174640511,-500.0,0.00020042,2]
[349422789,1737174640521,-500.0,0.00020042,2]
[349422790,1737174640530,-500.0,0.00020042,2]
[349422791,1737174640543,-500.0,0.00020042,2]
[349422792,1737174640553,-502.06370973,0.00020042,2]
[349422793,1737174640562,-500.0,0.00020042,2]
[349422794,1737174640571,-500.0,0.00020042,2]
[349422795,1737174640581,-500.0,0.00020042,2]
[349422796,1737174640590,-407.55493106,0.00020042,2]
[349422797,1737174640599,-500.0,0.00020042,2]
[349422798,1737174640609,-500.0,0.00020042,2]
[349422799,1737174640618,-500.0,0.00020042,2]
[349422800,1737174640628,-500.0,0.00020042,2]
[349422801,1737174640637,-500.0,0.00020042,2]
[349422802,1737174640647,-500.0,0.00020042,2]
[349422803,1737174640655,-500.0,0.00020042,2]
[349422804,1737174640665,-500.0,0.00020042,2]
[349422805,1737174640674,-500.0,0.00020042,2]
[349422806,1737174640683,-500.0,0.00020042,2]
[349422807,1737174640692,-500.0,0.00020042,2]
[349422808,1737174640702,-500.0,0.00020042,2]
[349422809,1737174640712,-500.0,0.00020042,2]
[349422810,1737174640723,-500.0,0.00020042,2]
[349422811,1737174640732,-500.0,0.00020042,2]
[349422812,1737174640741,-500.0,0.00020042,2]
[349422813,1737174640751,-500.0,0.00020042,2]
[349422814,1737174640761,-500.0,0.00020042,2]
[349422815,1737174640770,-248.29410618,0.00020042,2]
[349422816,1737174640779,-500.0,0.00020042,2]
[349422817,1737174640795,-500.0,0.00020042,2]
[349422818,1737174640804,-500.0,0.00020042,2]
[349422820,1737174640814,-500.0,0.00020042,2]
[349422822,1737174640823,-500.0,0.00020042,2]
[349422824,1737174640832,-500.0,0.00020042,2]
[349422825,1737174640841,-500.0,0.00020042,2]
[349422826,1737174640850,-500.0,0.00020042,2]
[349422827,1737174640860,-1135.06,0.00020042,2]
[349422828,1737174640869,-500.0,0.00020042,2]
[349422829,1737174640879,-500.0,0.00020042,2]
[349422830,1737174640888,-253.46754521,0.00020042,2]
[349422831,1737174640898,-500.0,0.00020042,2]
[349422832,1737174640907,-500.0,0.00020042,2]
[349422833,1737174640916,-2596.81,0.00020042,2]
[349422834,1737174640925,-500.0,0.00020042,2]
[349422835,1737174640934,-500.0,0.00020042,2]
[349422836,1737174640944,-500.0,0.00020042,2]
[349422837,1737174640953,-500.0,0.00020042,2]
[349422838,1737174640963,-181.26950855,0.00020042,2]
[349422839,1737174640972,-500.0,0.00020042,2]
[349422840,1737174640982,-2681.17,0.00020042,2]
[349422841,1737174640992,-509.89847375,0.00020042,2]
[349422842,1737174641001,-500.0,0.00020042,2]
[349422843,1737174641127,-2615.97,0.00020042,2]
[349422844,1737174641162,-500.0,0.00020042,2]
[349422845,1737174641171,-507.99732262,0.00020042,2]
[349422846,1737174641181,-1882.91,0.00020042,2]